fUSD/lending_fUSD_20260628
["ID","MTS","AMOUNT","RATE_DAILY","PERIOD"]
[426566095,1782595691000,500.0,0.00037288,120]
[426566096,1782595692000,157.46317735,0.00037288,120]
[426566098,1782595694000,500.0,0.00037288,120]
[426566097,1782595694000,500.0,0.00037288,120]
[426566099,1782595695000,580.1218769,0.00037288,120]
[426566100,1782595707000,500.0,0.00037288,120]
[426566101,1782595707000,600.73558118,0.00037288,120]
[426566102,1782595718000,528.10560702,0.00037288,120]
[426566105,1782595725000,548.71,0.00037288,120]
[426566104,1782595725000,500.0,0.00037288,120]
[426566106,1782595738000,20222.0,0.00037288,120]
[426566107,1782595748000,-106.04214331,0.00014831,2]
[426566108,1782595748000,-216.51184279,0.00014951,2]
[426566109,1782595748000,-278.23164069,0.00014999,2]
[426566114,1782595748000,-29.60130644,0.00016307,2]
[426566111,1782595748000,-160.0,0.00015209,2]
[426566110,1782595748000,-246.1041651,0.00015198,7]
[426566113,1782595748000,-250.0,0.00016307,2]
[426566112,1782595748000,-160.0,0.00015223,2]
[426566116,1782595753000,-250.0,0.00016307,2]
[426566118,1782595753000,-200.0,0.00016448,2]
[426566115,1782595753000,-570.39869356,0.00016307,2]
[426566117,1782595753000,-200.0,0.00016448,2]
[426566120,1782595753000,-200.0,0.00016448,7]
[426566123,1782595753000,-500.0,0.00019099,2]
[426566121,1782595753000,-200.0,0.00016448,7]
[426566122,1782595753000,-2513.41625162,0.00019,2]
[426566124,1782595753000,-500.0,0.00019099,2]
[426566126,1782595753000,-632.85018629,0.000193,2]
[426566125,1782595753000,-2513.41625162,0.000192,2]
[426566119,1782595753000,-200.0,0.00016448,2]
[426566127,1782595754000,526.25496909,0.00037288,120]
[426566128,1782595760000,583.29167755,0.00037288,120]
[426566129,1782595761000,-1880.56606533,0.000193,2]
[426566130,1782595761000,-1582.12095267,0.000195,2]
[426566131,1782595772000,-398.2900516,0.000195,2]
[426566142,1782595831000,-250.0,0.00019372,2]
[426566136,1782595831000,-499.07432918,0.00019,2]
[426566137,1782595831000,-499.1807737,0.00019,2]
[426566138,1782595831000,-563.09517282,0.00019,2]
[426566139,1782595831000,-1561.3502757,0.000192,2]
[426566141,1782595831000,-1561.3502757,0.000193,2]
[426566140,1782595831000,-350.0,0.00019222,2]
[426566146,1782595831000,-204.33396107,0.000196,2]
[426566145,1782595831000,-575.05872882,0.000195,2]
[426566144,1782595831000,-775.75637362,0.000195,2]
[426566147,1782595831000,-1555.82767967,0.000197,2]
[426566148,1782595831000,-5.52259603,0.000197,2]
[426566149,1782595831000,-199.5,0.00019831,2]
[426566150,1782595831000,-94.97740397,0.00019899,2]
[426566143,1782595831000,-210.53517326,0.000195,2]
[426566154,1782595833000,-54691.97740397,0.000199,2]
[426566151,1782595833000,-755.02259603,0.00019899,2]
[426566153,1782595833000,-1000.0,0.000199,15]
[426566152,1782595833000,-1000.0,0.000199,2]
[426566173,1782595837000,-128.37956512,0.000199,2]
[426566174,1782595838000,-500.0,0.000199,2]
[426566175,1782595838000,-2900.30400577,0.000199,2]
[426566182,1782595839000,-49373.03864945,0.000199,2]
[426566183,1782595839000,-946.99,0.000199,2]
[426566181,1782595839000,-81412.98150491,0.000199,2]
[426566180,1782595839000,-1344.99,0.000199,2]
[426566185,1782595840000,-1597.86473295,0.000199,2]
[426566184,1782595840000,-522.9232407,0.000199,2]
[426566214,1782595845000,-500.0,0.00019899,2]
[426566223,1782595845000,-259.96499999,0.000199,2]
[426566216,1782595845000,-4730.10159551,0.000199,2]
[426566228,1782595846000,-159.94465319,0.000199,2]
[426566229,1782595846000,-1768.50564424,0.000199,2]
[426566226,1782595846000,-1261.16862376,0.000199,2]
[426566225,1782595846000,-57.97177957,0.000199,2]
[426566243,1782595945000,511.3666,0.00037288,120]
[426566242,1782595945000,511.3666,0.00037288,120]
[426566244,1782595946000,511.3666,0.00037288,120]
[426566246,1782595946000,511.3666,0.00037288,120]
[426566245,1782595946000,511.3666,0.00037288,120]
[426566248,1782595947000,511.3666,0.00037288,120]
[426566247,1782595947000,511.3666,0.00037288,120]
[426566250,1782595948000,511.3666,0.00037288,120]
[426566249,1782595948000,511.3666,0.00037288,120]
[426566252,1782595949000,511.3666,0.00037288,120]
[426566251,1782595949000,511.3666,0.00037288,120]
[426566253,1782595950000,511.3666,0.00037288,120]
[426566254,1782595950000,511.3666,0.00037288,120]
[426566255,1782595950000,500.0,0.00037288,120]
[426566256,1782595950000,511.3666,0.00037288,120]
[426566257,1782595951000,511.3666,0.00037288,120]
[426566258,1782595951000,511.3666,0.00037288,120]
[426566260,1782595952000,511.3666,0.00037288,120]
[426566259,1782595952000,511.3666,0.00037288,120]
[426566263,1782595953000,511.3666,0.00037288,120]
[426566262,1782595953000,511.3666,0.00037288,120]
[426566261,1782595953000,511.3666,0.00037288,120]
[426566264,1782595954000,511.3666,0.00037288,120]
[426566265,1782595954000,511.3666,0.00037288,120]
[426566266,1782595955000,511.3666,0.00037288,120]
[426566267,1782595955000,511.3666,0.00037288,120]
[426566270,1782595956000,511.3666,0.00037288,120]
[426566269,1782595956000,511.3666,0.00037288,120]
[426566268,1782595956000,511.3666,0.00037288,120]
[426566272,1782595957000,511.3686,0.00037288,120]
[426566271,1782595957000,511.3666,0.00037288,120]
[426566275,1782596483000,-250.0,0.00014,2]
[426566276,1782596541000,566.875,0.00037288,120]
[426566278,1782596542000,566.875,0.00037288,120]
[426566277,1782596542000,566.875,0.00037288,120]
[426566281,1782596543000,566.875,0.00037288,120]
[426566280,1782596543000,566.875,0.00037288,120]
[426566279,1782596543000,566.875,0.00037288,120]
[426566283,1782596544000,566.875,0.00037288,120]
[426566282,1782596544000,566.875,0.00037288,120]
[426566286,1782596732000,500.0,0.00029184,120]
[426566287,1782596756000,-151.0,0.00015688,2]
[426566288,1782596756000,-24.72262938,0.00015688,2]
[426566291,1782596840000,-185.24433903,0.00015817,2]
[426566290,1782596840000,-126.27737062,0.00015688,2]
[426566297,1782596947000,-400.09937219,0.0001585,2]
[426566292,1782596947000,-3873.49906027,0.00014671,2]
[426566293,1782596947000,-300.0,0.00015179,2]
[426566294,1782596947000,-307.73545605,0.00015179,2]
[426566295,1782596947000,-317.8747729,0.00015619,2]
[426566296,1782596947000,-915.24690572,0.00015688,7]
[426566298,1782596947000,-600.0,0.0001585,2]
[426566299,1782596947000,-199.76051328,0.00015882,2]
[426566304,1782596947000,-500.0,0.00016109,2]
[426566300,1782596947000,-915.24690572,0.00016002,7]
[426566302,1782596947000,-4676.73887453,0.00016107,2]
[426566303,1782596947000,-1000.0,0.00016108,2]
[426566309,1782596947000,-173783.19303838,0.0001611,2]
[426566305,1782596947000,-500.0,0.00016109,2]
[426566306,1782596947000,-437.53070589,0.00016109,2]
[426566307,1782596947000,-186.12734355,0.00016109,2]
[426566308,1782596947000,-550.0,0.00016109,2]
[426566301,1782596947000,-1795.38571472,0.00016107,2]
[426566310,1782596957000,-159.17328665,0.00016109,2]
[426566311,1782596957000,-218.60358195,0.00016109,2]
[426566312,1782596957000,-13503.33690263,0.0001611,2]
[426566313,1782596960000,-44517.18840626,0.0001611,2]
[426566314,1782596963000,-9073.287566,0.0001611,2]
[426566315,1782596966000,-3405.4135082,0.0001611,2]
[426566316,1782596966000,-1367.09333575,0.0001611,2]
[426566317,1782596967000,-30237.02610627,0.0001611,2]
[426566318,1782596968000,-23124.54777064,0.0001611,2]
[426566319,1782596971000,-3450.80616347,0.0001611,2]
[426566336,1782597034000,-21204.57416659,0.0001599,2]
[426566335,1782597034000,-999.6617,0.0001589,2]
[426566338,1782597034000,-222.88255222,0.000161,2]
[426566337,1782597034000,-2662.69277053,0.00016038,2]
[426566340,1782597034000,-15222.15340473,0.0001611,2]
[426566339,1782597034000,-116115.0898745,0.0001611,2]
[426566342,1782597034000,-9851.82298573,0.0001611,2]
[426566341,1782597034000,-995.20208545,0.0001611,2]
[426566343,1782597035000,500.0,0.00027666,120]
[426566355,1782597037000,-980.79069926,0.0001611,2]
[426566354,1782597037000,-632.63160208,0.0001611,2]
[426566380,1782597038000,-176.23452868,0.00016207,7]
[426566381,1782597038000,-916.0,0.00016207,2]
[426566382,1782597038000,-888.0,0.00016207,2]
[426566383,1782597038000,-886.0,0.00016207,2]
[426566384,1782597038000,-913.0,0.00016207,2]
[426566388,1782597038000,-883.0,0.00016227,2]
[426566387,1782597038000,-908.0,0.00016214,2]
[426566396,1782597038000,-500.0,0.00016438,2]
[426566390,1782597038000,-911.0,0.00016261,2]
[426566386,1782597038000,-917.0,0.0001621,2]
[426566379,1782597038000,-601.21805229,0.00016207,2]
[426566389,1782597038000,-918.0,0.00016261,2]
[426566391,1782597038000,-160.0,0.0001632,2]
[426566393,1782597038000,-891.0,0.00016349,2]
[426566395,1782597038000,-219.55785031,0.00016438,2]
[426566392,1782597038000,-913.0,0.00016349,2]
[426566394,1782597038000,-216.51184279,0.00016396,2]
[426566397,1782597038000,-915.24690572,0.00016472,7]
[426566385,1782597038000,-897.0,0.00016208,2]
[426566378,1782597038000,-884.0,0.00016207,2]
[426566361,1782597038000,-892.0,0.00016207,2]
[426566377,1782597038000,-914.0,0.00016207,2]
[426566399,1782597038000,-915.24690572,0.00016943,7]
[426566356,1782597038000,-1053740.41655065,0.0001611,2]
[426566357,1782597038000,-300.0,0.00016138,2]
[426566358,1782597038000,-250.0,0.00016138,2]
[426566362,1782597038000,-898.0,0.00016207,2]
[426566359,1782597038000,-500.0,0.00016138,2]
[426566363,1782597038000,-900.0,0.00016207,2]
[426566360,1782597038000,-911.0,0.00016207,2]
[426566364,1782597038000,-891.0,0.00016207,2]
[426566365,1782597038000,-894.0,0.00016207,2]
[426566368,1782597038000,-907.0,0.00016207,2]
[426566366,1782597038000,-913.0,0.00016207,2]
[426566369,1782597038000,-890.0,0.00016207,2]
[426566370,1782597038000,-888.0,0.00016207,2]
[426566372,1782597038000,-896.0,0.00016207,2]
[426566371,1782597038000,-896.0,0.00016207,2]
[426566373,1782597038000,-915.0,0.00016207,2]
[426566374,1782597038000,-912.0,0.00016207,2]
[426566375,1782597038000,-891.0,0.00016207,2]
[426566376,1782597038000,-883.0,0.00016207,2]
[426566402,1782597038000,-909.0,0.00017191,2]
[426566367,1782597038000,-918.0,0.00016207,2]
[426566401,1782597038000,-5737.64,0.0001714,2]
[426566427,1782597038000,-1207.32,0.00017957,2]
[426566428,1782597038000,-243.53787043,0.00018,2]
[426566426,1782597038000,-166.66,0.0001771,2]
[426566429,1782597038000,-166.66,0.00018083,2]
[426566430,1782597038000,-583.91,0.00018096,2]
[426566431,1782597038000,-4676.73887453,0.0001824,2]
[426566436,1782597038000,-837.73,0.0001872,2]
[426566433,1782597038000,-166.66,0.00018456,2]
[426566435,1782597038000,-373.48,0.0001872,2]
[426566432,1782597038000,-887.26,0.00018288,2]
[426566437,1782597038000,-12272.84,0.0001872,2]
[426566439,1782597038000,-583.91,0.00018957,2]
[426566438,1782597038000,-166.66,0.00018829,2]
[426566442,1782597038000,-189.86987818,0.00019,2]
[426566441,1782597038000,-1561.35027571,0.00019,2]
[426566440,1782597038000,-171.77245151,0.00019,2]
[426566443,1782597038000,-262.39999999,0.00019,2]
[426566444,1782597038000,-2662.69277048,0.0001906,2]
[426566400,1782597038000,-352.46905728,0.00017017,7]
[426566425,1782597038000,-40343.09,0.00017703,2]
[426566424,1782597038000,-1085.43088771,0.00017701,2]
[426566434,1782597038000,-583.91,0.00018526,2]
[426566423,1782597038000,-1574.93,0.00017697,2]
[426566398,1782597038000,-900.0,0.00016582,2]
[426566421,1782597038000,-167.4,0.00017654,2]
[426566403,1782597038000,-500.0,0.00017224,2]
[426566406,1782597038000,-187.55,0.00017242,2]
[426566404,1782597038000,-167.15,0.00017224,2]
[426566405,1782597038000,-583.91,0.00017234,2]
[426566409,1782597038000,-150.0,0.00017293,2]
[426566408,1782597038000,-2500.4,0.00017256,2]
[426566410,1782597038000,-2500.0,0.00017399,2]
[426566413,1782597038000,-200.0,0.00017406,2]
[426566407,1782597038000,-251.15,0.00017253,2]
[426566411,1782597038000,-300.0,0.00017399,2]
[426566414,1782597038000,-250.0,0.00017435,2]
[426566417,1782597038000,-300.0,0.00017479,2]
[426566416,1782597038000,-200.0,0.00017435,2]
[426566415,1782597038000,-300.1513056,0.00017435,2]
[426566418,1782597038000,-150.0,0.00017543,2]
[426566419,1782597038000,-915.24690575,0.0001757,7]
[426566412,1782597038000,-600.0,0.00017399,2]
[426566420,1782597038000,-176.05,0.0001763,2]
[426566422,1782597038000,-583.91,0.00017665,2]
[426566487,1782597039000,-4154.0,0.0002,2]
[426566484,1782597039000,-831.0,0.0002,2]
[426566485,1782597039000,-184.0,0.0002,2]
[426566482,1782597039000,-195.0,0.0002,2]
[426566483,1782597039000,-167.0,0.0002,2]
[426566479,1782597039000,-210.0,0.0002,2]
[426566481,1782597039000,-568.0,0.0002,2]
[426566478,1782597039000,-271.82450687,0.0002,2]
[426566476,1782597039000,-553.0,0.0002,2]
[426566486,1782597039000,-156.0,0.0002,2]
[426566474,1782597039000,-917.0,0.000199,2]
[426566480,1782597039000,-167.17708825,0.0002,2]
[426566488,1782597039000,-260.0,0.0002,2]
[426566500,1782597039000,-4358.1942,0.00020548,2]
[426566491,1782597039000,-1789.35,0.00020145,2]
[426566490,1782597039000,-499.99,0.00020145,2]
[426566493,1782597039000,-12044.2,0.00020145,2]
[426566492,1782597039000,-999.99,0.00020145,2]
[426566494,1782597039000,-9999.99,0.00020145,2]
[426566496,1782597039000,-34091.18,0.00020145,2]
[426566498,1782597039000,-1207.32,0.00020202,2]
[426566495,1782597039000,-4999.99,0.00020145,2]
[426566501,1782597039000,-4358.1942,0.00020548,2]
[426566499,1782597039000,-4676.73887453,0.00020372,2]
[426566502,1782597039000,-4358.1942,0.00020548,2]
[426566477,1782597039000,-520.0,0.0002,2]
[426566489,1782597039000,-160.0,0.00020061,2]
[426566475,1782597039000,-910.0,0.000199,2]
[426566452,1782597039000,-1561.35027571,0.000195,2]
[426566473,1782597039000,-883.0,0.000199,2]
[426566447,1782597039000,-166.66,0.00019202,2]
[426566449,1782597039000,-803.77,0.00019355,7]
[426566448,1782597039000,-1561.35027571,0.000193,2]
[426566445,1782597039000,-171.77245151,0.000192,2]
[426566446,1782597039000,-1561.35027571,0.000192,2]
[426566450,1782597039000,-250.0,0.00019385,2]
[426566453,1782597039000,-166.66,0.00019575,2]
[426566503,1782597039000,-4358.1942,0.00020548,2]
[426566454,1782597039000,-1561.35027571,0.000197,2]
[426566451,1782597039000,-3221.16,0.00019483,2]
[426566455,1782597039000,-268.134029,0.00019736,2]
[426566458,1782597039000,-21021.9778602,0.00019819,2]
[426566460,1782597039000,-1392.952862,0.00019824,2]
[426566457,1782597039000,-1795.6272654,0.00019819,2]
[426566459,1782597039000,-452.2240856,0.00019819,2]
[426566461,1782597039000,-176.05,0.00019833,2]
[426566456,1782597039000,-236.0,0.00019812,2]
[426566462,1782597039000,-500.0,0.0001988,2]
[426566463,1782597039000,-500.0,0.00019899,2]
[426566466,1782597039000,-500.0,0.00019899,2]
[426566465,1782597039000,-500.0,0.00019899,2]
[426566464,1782597039000,-331.18291848,0.00019899,2]
[426566468,1782597039000,-500.0,0.00019899,2]
[426566467,1782597039000,-500.0,0.00019899,2]
[426566469,1782597039000,-500.0,0.00019899,2]
[426566472,1782597039000,-891.0,0.000199,2]
[426566470,1782597039000,-500.0,0.00019899,2]
[426566471,1782597039000,-180.793004,0.000199,2]
[426566505,1782597039000,-4358.1942,0.00020548,2]
[426566497,1782597039000,-6800.28,0.00020145,2]
[426566506,1782597039000,-4358.1942,0.00020548,2]
[426566537,1782597039000,-195.0,0.00022,2]
[426566538,1782597039000,-167.0,0.00022,2]
[426566542,1782597039000,-260.0,0.00022,2]
[426566541,1782597039000,-172.0,0.00022,2]
[426566543,1782597039000,-176.05,0.00022037,2]
[426566544,1782597039000,-2662.69277048,0.00022081,2]
[426566545,1782597039000,-174.13974192,0.00022344,2]
[426566546,1782597039000,-1351.3747258,0.00022344,2]
[426566548,1782597039000,-514.35958644,0.00022344,2]
[426566550,1782597039000,-151.0,0.00022344,2]
[426566549,1782597039000,-151.0,0.00022344,2]
[426566554,1782597039000,-151.0,0.00022344,2]
[426566552,1782597039000,-151.0,0.00022344,2]
[426566551,1782597039000,-151.0,0.00022344,2]
[426566553,1782597039000,-151.0,0.00022344,2]
[426566556,1782597039000,-151.0,0.00022344,2]
[426566555,1782597039000,-151.0,0.00022344,2]
[426566563,1782597039000,-151.0,0.00022344,2]
[426566558,1782597039000,-151.0,0.00022344,2]
[426566560,1782597039000,-151.0,0.00022344,2]
[426566562,1782597039000,-151.0,0.00022344,2]
[426566567,1782597039000,-151.0,0.00022344,2]
[426566565,1782597039000,-151.0,0.00022344,2]
[426566564,1782597039000,-151.0,0.00022344,2]
[426566566,1782597039000,-151.0,0.00022344,2]
[426566504,1782597039000,-4358.1942,0.00020548,2]
[426566569,1782597039000,-151.0,0.00022344,2]
[426566540,1782597039000,-184.0,0.00022,2]
[426566539,1782597039000,-831.0,0.00022,2]
[426566568,1782597039000,-151.0,0.00022344,2]
[426566533,1782597039000,-553.0,0.00022,2]
[426566536,1782597039000,-568.0,0.00022,2]
[426566511,1782597039000,-553.0,0.00021,2]
[426566510,1782597039000,-291.26154696,0.00021,2]
[426566509,1782597039000,-14234.57,0.00020951,2]
[426566512,1782597039000,-520.0,0.00021,2]
[426566513,1782597039000,-210.0,0.00021,2]
[426566514,1782597039000,-568.0,0.00021,2]
[426566517,1782597039000,-831.0,0.00021,2]
[426566516,1782597039000,-167.0,0.00021,2]
[426566515,1782597039000,-195.0,0.00021,2]
[426566518,1782597039000,-184.0,0.00021,2]
[426566519,1782597039000,-156.0,0.00021,2]
[426566520,1782597039000,-260.0,0.00021,2]
[426566507,1782597039000,-236.0,0.00020634,2]
[426566523,1782597039000,-186.497248,0.00021455,2]
[426566532,1782597039000,-1011.31,0.00021918,2]
[426566535,1782597039000,-210.0,0.00022,2]
[426566534,1782597039000,-520.0,0.00022,2]
[426566530,1782597039000,-291.26154696,0.000219,2]
[426566521,1782597039000,-291.26154696,0.000212,2]
[426566527,1782597039000,-176.32,0.00021857,2]
[426566531,1782597039000,-5000.0,0.00021918,2]
[426566528,1782597039000,-801.1,0.0002189,2]
[426566526,1782597039000,-291.26154696,0.000216,2]
[426566524,1782597039000,-291.56831587,0.00021559,2]
[426566525,1782597039000,-201.0,0.00021567,3]
[426566522,1782597039000,-291.26154696,0.000214,2]
[426566529,1782597039000,-300.814501,0.00021897,2]
[426566610,1782597040000,-184.0,0.00024,2]
[426566609,1782597040000,-831.0,0.00024,2]
[426566608,1782597040000,-167.0,0.00024,2]
[426566607,1782597040000,-195.0,0.00024,2]
[426566599,1782597040000,-175.61817784,0.00023673,2]
[426566606,1782597040000,-568.0,0.00024,2]
[426566604,1782597040000,-520.0,0.00024,2]
[426566603,1782597040000,-553.0,0.00024,2]
[426566600,1782597040000,-514.35958644,0.00023714,2]
[426566602,1782597040000,-514.35958644,0.00023988,2]
[426566605,1782597040000,-210.0,0.00024,2]
[426566611,1782597040000,-260.0,0.00024,2]
[426566618,1782597040000,-514.35958644,0.00024536,2]
[426566614,1782597040000,-2500.4,0.00024159,2]
[426566612,1782597040000,-234.68,0.0002411,2]
[426566615,1782597040000,-630.88,0.00024174,2]
[426566616,1782597040000,-176.05,0.00024241,2]
[426566621,1782597040000,-181.88,0.00024658,2]
[426566620,1782597040000,-1000.0,0.00024658,2]
[426566617,1782597040000,-514.35958644,0.00024262,2]
[426566619,1782597040000,-4676.73887453,0.00024637,2]
[426566622,1782597040000,-1207.32,0.00024691,2]
[426566623,1782597040000,-514.35958644,0.0002481,2]
[426566625,1782597040000,-281.0,0.00024839,2]
[426566598,1782597040000,-207.9268502,0.00023673,2]
[426566613,1782597040000,-325.0,0.0002411,2]
[426566596,1782597040000,-196.89112371,0.00023673,2]
[426566583,1782597040000,-514.35958644,0.00022892,2]
[426566594,1782597040000,-514.35958644,0.0002344,2]
[426566624,1782597040000,-239.0,0.00024839,2]
[426566571,1782597040000,-151.0,0.00022344,2]
[426566575,1782597040000,-268.21,0.00022466,2]
[426566572,1782597040000,-184.63828196,0.00022353,2]
[426566574,1782597040000,-1870.05,0.00022466,2]
[426566573,1782597040000,-1207.32,0.00022447,2]
[426566570,1782597040000,-151.0,0.00022344,2]
[426566576,1782597040000,-371.43,0.00022466,2]
[426566578,1782597040000,-166.66,0.00022585,2]
[426566579,1782597040000,-255.71,0.00022609,2]
[426566577,1782597040000,-4676.73887453,0.00022505,2]
[426566580,1782597040000,-159.29,0.00022609,2]
[426566581,1782597040000,-514.35958644,0.00022618,2]
[426566584,1782597040000,-553.0,0.00023,2]
[426566587,1782597040000,-568.0,0.00023,2]
[426566586,1782597040000,-210.0,0.00023,2]
[426566585,1782597040000,-520.0,0.00023,2]
[426566582,1782597040000,-154.32,0.00022749,7]
[426566588,1782597040000,-195.0,0.00023,2]
[426566591,1782597040000,-184.0,0.00023,2]
[426566590,1782597040000,-831.0,0.00023,2]
[426566589,1782597040000,-167.0,0.00023,2]
[426566593,1782597040000,-514.35958644,0.00023166,2]
[426566592,1782597040000,-260.0,0.00023,2]
[426566595,1782597040000,-198.18437164,0.00023673,2]
[426566597,1782597040000,-205.4210533,0.00023673,2]
[426566628,1782597040000,-620.63530643,0.00024926,2]
[426566601,1782597040000,-280.76,0.00023864,2]
[426566626,1782597040000,-165.39573362,0.00024926,2]
[426566659,1782597040000,-295.60955475,0.00025765,2]
[426566658,1782597040000,-164.89988693,0.00025765,2]
[426566660,1782597040000,-333.63115061,0.00025765,2]
[426566663,1782597040000,-160.04066708,0.00025765,2]
[426566664,1782597040000,-227.45117627,0.00025765,2]
[426566665,1782597040000,-413.75687095,0.00025765,2]
[426566661,1782597040000,-219.50866858,0.00025765,2]
[426566662,1782597040000,-203.32462581,0.00025765,2]
[426566666,1782597040000,-174.81990942,0.00025765,2]
[426566667,1782597040000,-150.47449193,0.00025765,2]
[426566670,1782597040000,-274.55338379,0.00025771,2]
[426566671,1782597040000,-594.55311493,0.00025771,2]
[426566657,1782597040000,-237.75824844,0.00025765,2]
[426566668,1782597040000,-151.2075183,0.0002577,2]
[426566672,1782597040000,-243.14859482,0.00025771,2]
[426566673,1782597040000,-214.76301677,0.00025771,2]
[426566675,1782597040000,-616.26315989,0.00025771,2]
[426566676,1782597040000,-469.21683127,0.00025771,2]
[426566674,1782597040000,-590.67337114,0.00025771,2]
[426566677,1782597040000,-623.78055061,0.00025771,2]
[426566678,1782597040000,-526.85453353,0.00025771,2]
[426566679,1782597040000,-153.36440169,0.00025772,2]
[426566681,1782597040000,-164.32747503,0.00025772,2]
[426566680,1782597040000,-176.70702792,0.00025772,2]
[426566682,1782597040000,-176.16503765,0.00025772,2]
[426566627,1782597040000,-166.81557531,0.00024926,2]
[426566669,1782597040000,-203.57632397,0.00025771,2]
[426566656,1782597040000,-291.58342459,0.00025765,2]
[426566683,1782597040000,-163.22655547,0.00025772,2]
[426566651,1782597040000,-357.63,0.00025675,7]
[426566629,1782597040000,-396.36874328,0.00024932,2]
[426566632,1782597040000,-234.60841563,0.00024932,2]
[426566630,1782597040000,-393.78224743,0.00024932,2]
[426566631,1782597040000,-410.8421066,0.00024932,2]
[426566633,1782597040000,-415.85370041,0.00024932,2]
[426566634,1782597040000,-351.23635569,0.00024932,2]
[426566635,1782597040000,-151.89742197,0.00024932,2]
[426566655,1782597040000,-163.0146207,0.00025765,2]
[426566642,1782597040000,-836.33896543,0.00025,2]
[426566638,1782597040000,-226.50414315,0.00025,2]
[426566640,1782597040000,-206.84486236,0.00025,2]
[426566636,1782597040000,-557.0,0.00025,2]
[426566637,1782597040000,-531.47984577,0.00025,2]
[426566641,1782597040000,-173.76103464,0.00025,2]
[426566643,1782597040000,-189.77700663,0.00025,2]
[426566654,1782597040000,-330.79146723,0.00025765,2]
[426566639,1782597040000,-568.0,0.00025,2]
[426566650,1782597040000,-514.35958644,0.00025632,2]
[426566684,1782597040000,-151.85475957,0.00025772,2]
[426566652,1782597040000,-488.04299889,0.00025715,2]
[426566653,1782597040000,-221.20901173,0.00025765,2]
[426566645,1782597040000,-514.35958644,0.00025084,2]
[426566644,1782597040000,-263.97049707,0.00025,2]
[426566647,1782597040000,-514.35958644,0.00025358,2]
[426566648,1782597040000,-454.58578422,0.00025397,2]
[426566646,1782597040000,-2662.69277048,0.00025103,2]
[426566649,1782597040000,-281.0,0.00025524,2]
[426566722,1782597041000,-331.55973451,0.00026324,2]
[426566720,1782597041000,-320.08133416,0.00026324,2]
[426566723,1782597041000,-249.36165436,0.00026324,2]
[426566721,1782597041000,-434.32580055,0.00026324,2]
[426566713,1782597041000,-591.2191095,0.00026324,2]
[426566718,1782597041000,-439.01733716,0.00026324,2]
[426566716,1782597041000,-500.44672592,0.00026324,2]
[426566717,1782597041000,-438.86715345,0.00026324,2]
[426566715,1782597041000,-386.5794993,0.00026324,2]
[426566719,1782597041000,-406.64925161,0.00026324,2]
[426566724,1782597041000,-454.90235255,0.00026324,2]
[426566738,1782597041000,-792.73748657,0.0002633,2]
[426566727,1782597041000,-300.94898386,0.00026324,2]
[426566726,1782597041000,-349.63981885,0.00026324,2]
[426566728,1782597041000,-253.59058619,0.00026324,2]
[426566729,1782597041000,-224.05355557,0.0002633,2]
[426566730,1782597041000,-302.4150366,0.0002633,2]
[426566732,1782597041000,-158.33045069,0.0002633,2]
[426566731,1782597041000,-211.90926979,0.0002633,2]
[426566733,1782597041000,-228.92768709,0.0002633,2]
[426566734,1782597041000,-215.58755629,0.0002633,2]